bitfinex/quotes_BTCUSD_20250523
["timestamp","ask_amount","ask_price","bid_price","bid_amount"]
[1748042013869,0.1879946,107530.0,107520.0,1.18506561]
[1748042015820,0.20659362,107530.0,107520.0,1.18506561]
[1748042015980,0.20659362,107530.0,107520.0,1.1943662]
[1748042016188,0.20059362,107530.0,107520.0,1.3896786]
[1748042016397,0.20059362,107530.0,107520.0,1.39897902]
[1748042016676,0.20059362,107530.0,107520.0,1.39797902]
[1748042016876,0.20059362,107530.0,107520.0,1.40827935]
[1748042018165,0.20059362,107530.0,107520.0,1.41027935]
[1748042018383,0.20059362,107530.0,107520.0,1.79973391]
[1748042019434,0.20059362,107530.0,107520.0,1.79043375]
[1748042021262,0.19129424,107530.0,107520.0,1.78113342]
[1748042021479,0.19129424,107530.0,107520.0,1.79043375]
[1748042022772,0.19129424,107530.0,107520.0,1.77183292]
[1748042023378,0.19129424,107530.0,107520.0,1.78113325]
[1748042023752,0.18529424,107530.0,107520.0,1.78113325]
[1748042024270,0.18529424,107530.0,107520.0,1.40097885]
[1748042024474,0.18529424,107530.0,107520.0,1.78113325]
[1748042025703,0.18529424,107530.0,107520.0,1.79043349]
[1748042028226,0.01859902,107530.0,107520.0,1.79973295]
[1748042028616,0.01859703,107540.0,107530.0,0.20459292]
[1748042028918,0.04649231,107540.0,107530.0,0.64974731]
[1748042029128,0.22317154,107540.0,107530.0,0.64974731]
[1748042029380,0.2138732,107540.0,107530.0,0.64044802]
[1748042029549,0.20457477,107540.0,107530.0,0.64044819]
[1748042029784,0.20457477,107540.0,107530.0,0.64974766]
[1748042029991,0.20457477,107540.0,107530.0,0.65904704]
[1748042030191,0.20457477,107540.0,107530.0,0.66794075]
[1748042031240,0.01859746,107540.0,107530.0,0.66794075]
[1748042031472,0.02789571,107540.0,107530.0,0.67723944]
[1748042031678,0.20457442,107540.0,107530.0,0.65864111]
[1748042032077,0.20457442,107540.0,107530.0,0.66264111]
[1748042033678,0.20457442,107540.0,107530.0,0.6719404]
[1748042033895,0.20457442,107540.0,107530.0,0.64404226]
[1748042034312,0.19527608,107540.0,107530.0,0.43116468]
[1748042034503,0.19527608,107540.0,107530.0,0.61715928]
[1748042034854,0.19527608,107540.0,107530.0,0.61715946]
[1748042035059,0.19527608,107540.0,107530.0,0.62645901]
[1748042035260,0.18597731,107540.0,107530.0,0.6264591]
[1748042035500,0.18597731,107540.0,107530.0,0.63575865]
[1748042036062,0.03719354,107540.0,107530.0,0.98505673]
[1748042036289,0.04649231,107540.0,107530.0,0.97575778]
[1748042037105,0.04649309,107540.0,107530.0,0.97575778]
[1748042037443,0.03719423,107540.0,107530.0,0.97575778]
[1748042038641,0.2324704,107540.0,107530.0,0.96645866]
[1748042038844,0.04649309,107540.0,107530.0,0.97575787]
[1748042039044,0.03719423,107540.0,107530.0,0.98505699]
[1748042039249,0.03719475,107540.0,107530.0,0.98505699]
[1748042039777,0.01859642,107540.0,107530.0,0.98505699]
[1748042039975,0.01859642,107540.0,107530.0,1.08580255]
[1748042040209,0.02789493,107540.0,107530.0,1.08580255]
[1748042040327,0.03719362,107540.0,107530.0,1.07460255]
[1748042040744,0.23246979,107540.0,107530.0,0.47125629]
[1748042040949,0.23097486,107540.0,107530.0,1.02102775]
[1748042041161,0.23097486,107540.0,107530.0,1.20702235]
[1748042041575,0.20457486,107540.0,107530.0,1.20702235]
[1748042041973,0.20457486,107540.0,107530.0,1.2163219]
[1748042042258,0.20457486,107540.0,107530.0,1.2433219]
[1748042042432,0.00929843,107540.0,107530.0,1.25262137]
[1748042042582,0.03719389,107540.0,107530.0,1.27121987]
[1748042042788,0.2231712,107540.0,107530.0,1.26192075]
[1748042043400,0.2231712,107540.0,107530.0,1.27122004]
[1748042044509,0.2231712,107540.0,107530.0,1.2972757]
[1748042045652,0.21387303,107540.0,107530.0,1.2972757]
[1748042045918,0.21387303,107540.0,107530.0,1.30838866]
[1748042047067,0.2045746,107540.0,107530.0,1.30838866]
[1748042047272,0.21387303,107540.0,107530.0,1.30838866]
[1748042047473,0.22165731,107550.0,107540.0,0.55387328]
[1748042047678,0.20455487,107550.0,107540.0,0.96008334]
[1748042047876,0.0092973,107550.0,107540.0,0.9693816]
[1748042048081,0.01859478,107550.0,107540.0,0.9963816]
[1748042048335,0.02789234,107550.0,107540.0,0.9963816]
[1748042048537,0.03719008,107550.0,107540.0,0.9963816]
[1748042048837,0.03719008,107550.0,107540.0,0.9983816]
[1748042049067,0.03719008,107550.0,107540.0,0.9963816]
[1748042049417,0.03819008,107550.0,107540.0,0.9993816]
[1748042049983,0.03819008,107550.0,107540.0,1.0003816]
[1748042050192,0.04748799,107550.0,107540.0,1.0003816]
[1748042050396,0.25055122,107550.0,107540.0,0.97238177]
[1748042050600,0.05529321,107550.0,107540.0,0.98167951]
[1748042050779,0.05529321,107550.0,107540.0,0.97538125]
[1748042050973,0.05529321,107550.0,107540.0,0.99538792]
[1748042051481,0.05529321,107550.0,107540.0,1.00468618]
[1748042051694,0.25055122,107550.0,107540.0,0.99538792]
[1748042052142,0.05769321,107550.0,107540.0,1.00468618]
[1748042052784,0.24365322,107550.0,107540.0,0.99538792]
[1748042052992,0.26165566,107550.0,107540.0,0.46954233]
[1748042053195,0.35120122,107550.0,107540.0,0.44348667]
[1748042053411,0.35120122,107550.0,107540.0,0.72212667]
[1748042054815,0.35120122,107550.0,107540.0,0.70212]
[1748042054816,0.34190348,107550.0,107540.0,0.70212]
[1748042055229,0.34090348,107550.0,107540.0,0.69912]
[1748042055385,0.34090348,107550.0,107540.0,0.69612]
[1748042055785,0.34090348,107550.0,107540.0,0.69712]
[1748042057287,0.34090348,107550.0,107540.0,0.6972]
[1748042059384,0.34090348,107550.0,107520.0,0.34]
[1748042059385,0.23139344,107530.0,107520.0,0.34]
[1748042059632,0.23139344,107530.0,107520.0,0.75752]
[1748042060711,0.23139344,107530.0,107520.0,1.0362]
[1748042060911,0.23139344,107530.0,107520.0,1.04509828]
[1748042061330,0.23239344,107530.0,107520.0,1.04809828]
[1748042061535,0.23339344,107530.0,107520.0,1.05109828]
[1748042062408,0.22409389,107530.0,107520.0,1.05109828]
[1748042062812,0.23339344,107530.0,107520.0,1.05109828]
[1748042063868,0.23339344,107530.0,107520.0,1.23711018]
[1748042065675,0.23339344,107530.0,107520.0,1.2557111]
[1748042065880,0.23339344,107530.0,107520.0,1.24641077]
[1748042066284,0.23339344,107530.0,107520.0,1.64769077]
[1748042067411,0.22409415,107530.0,107520.0,1.64769077]
[1748042067963,0.22409415,107530.0,107520.0,1.46167887]
[1748042068752,0.25069415,107530.0,107520.0,1.45237828]
[1748042069619,0.25069415,107530.0,107520.0,1.47844515]
[1748042070095,0.24469415,107530.0,107520.0,1.47844515]
[1748042072069,0.0288,107530.0,107520.0,2.05391204]
[1748042072272,0.01129895,107530.0,107520.0,1.72965836]
[1748042072474,0.002,107530.0,107520.0,2.21389917]
[1748042072677,0.002,107530.0,107520.0,2.22619917]
[1748042072880,0.002,107530.0,107520.0,3.31982957]
[1748042073093,0.002,107530.0,107520.0,3.24596657]
[1748042073514,0.002,107530.0,107520.0,3.25596657]
[1748042075279,0.001,107530.0,107520.0,3.25296657]
[1748042075486,0.0185947,107550.0,107540.0,0.2564137]
[1748042075689,0.01859461,107550.0,107540.0,0.65070613]
[1748042075896,0.01859461,107550.0,107540.0,0.65960441]
[1748042076587,0.01959461,107550.0,107540.0,0.66260441]
[1748042076809,0.02889209,107550.0,107540.0,0.66260441]
[1748042077369,0.02889209,107550.0,107540.0,0.38392441]
[1748042077688,0.02889209,107550.0,107540.0,1.06720441]
[1748042077887,0.01959487,107550.0,107540.0,1.06720441]
[1748042078838,0.02889209,107550.0,107540.0,1.06720441]
[1748042079062,0.01959461,107550.0,107540.0,1.06720441]
[1748042081981,0.001,107550.0,107540.0,1.06720441]
[1748042082251,0.01029722,107550.0,107540.0,1.06720441]
[1748042082807,0.001,107550.0,107540.0,1.06720441]
[1748042083193,0.00085932,107550.0,107540.0,1.06720441]
[1748042083589,0.00085932,107550.0,107540.0,0.85109071]
[1748042083882,0.00085932,107550.0,107540.0,1.03889669]
[1748042084781,0.00085932,107550.0,107540.0,1.96952669]
[1748042084990,0.00085932,107550.0,107540.0,1.99554922]
[1748042085679,0.06648343,107570.0,107560.0,0.34]
[1748042085851,0.06648343,107570.0,107560.0,1.29532828]
[1748042086839,0.06648343,107570.0,107560.0,1.32326924]
[1748042087251,0.07048343,107570.0,107560.0,1.32326924]
[1748042087693,0.07048343,107570.0,107560.0,1.33216752]
[1748042087919,0.06118725,107570.0,107560.0,1.33216752]
[1748042088136,0.07048334,107570.0,107560.0,1.33216752]
[1748042091060,0.10068334,107570.0,107560.0,1.33216752]
[1748042091322,0.08209124,107570.0,107560.0,1.33216752]
[1748042091526,0.09138716,107570.0,107560.0,1.33216752]
[1748042091925,0.07048325,107570.0,107560.0,1.33216752]
[1748042092279,0.06118708,107570.0,107560.0,1.33216752]
[1748042092480,0.07048309,107570.0,107560.0,1.33216752]
[1748042093085,0.06118708,107570.0,107560.0,1.33216752]
[1748042093282,0.05518708,107570.0,107560.0,1.72492752]
[1748042093692,0.04589115,107570.0,107560.0,1.72492752]
[1748042094094,0.05518699,107570.0,107560.0,1.72492752]
[1748042094746,0.04589115,107570.0,107560.0,1.72492752]
[1748042095167,0.02259115,107570.0,107560.0,1.72492752]
[1748042095620,0.01329549,107570.0,107560.0,1.72492752]
[1748042095902,0.004,107570.0,107560.0,1.07734674]
[1748042096041,0.004,107570.0,107560.0,1.80489676]
[1748042096777,0.002,107570.0,107560.0,1.80489676]
[1748042097148,0.001,107570.0,107560.0,1.80489676]
[1748042097592,0.08538482,107580.0,107570.0,0.5538132]
[1748042097991,0.08538474,107580.0,107570.0,0.5538132]
[1748042098432,0.09467997,107580.0,107570.0,0.5538132]
[1748042099384,0.09567997,107580.0,107570.0,0.5538132]
[1748042099579,0.09667988,107580.0,107570.0,0.56271148]
[1748042099782,0.1059752,107580.0,107570.0,0.56271148]
[1748042100849,0.0966804,107580.0,107570.0,0.57200741]
[1748042101096,0.0966804,107580.0,107570.0,0.58130307]
[1748042101097,0.05758508,107580.0,107570.0,0.58130307]
[1748042101697,0.06688031,107580.0,107570.0,0.58130307]
[1748042102058,0.0297,107580.0,107570.0,0.58130307]
[1748042102462,0.04828959,107580.0,107570.0,0.58130307]
[1748042102864,0.002,107580.0,107570.0,0.67084863]
[1748042103119,0.002,107580.0,107570.0,0.71218948]
[1748042103373,0.002,107580.0,107570.0,1.40549304]
[1748042103649,0.002,107580.0,107570.0,1.42030927]
[1748042104005,0.00929385,107590.0,107570.0,1.41101352]
[1748042104214,0.25324696,107600.0,107590.0,0.55377372]
[1748042104416,0.25166757,107600.0,107590.0,0.53518542]
[1748042104943,0.25166757,107600.0,107590.0,0.54447987]
[1748042105154,0.25166757,107600.0,107590.0,0.55377424]
[1748042105561,0.25366757,107600.0,107590.0,0.56267252]
[1748042106513,0.24637398,107600.0,107590.0,1.02017828]
[1748042108142,0.27425315,107600.0,107590.0,1.23395182]
[1748042108380,0.26496017,107600.0,107590.0,1.21536361]
[1748042108602,0.25896017,107600.0,107590.0,1.21536361]
[1748042108849,0.25896017,107600.0,107590.0,1.23395226]
[1748042109257,0.24966693,107600.0,107590.0,1.22465798]
[1748042109664,0.2403736,107600.0,107590.0,1.02017828]
[1748042113153,0.2403736,107600.0,107590.0,0.34889828]
[1748042113333,0.2403736,107600.0,107590.0,0.40157828]
[1748042113563,0.32991916,107600.0,107590.0,0.68009828]
[1748042113999,0.32991916,107600.0,107590.0,0.6712]
[1748042114405,0.20449836,107580.0,107570.0,0.34]
[1748042114581,0.26119836,107580.0,107570.0,1.0112]
[1748042115393,0.26119836,107580.0,107570.0,0.73268]
[1748042115598,0.26119836,107580.0,107560.0,0.41606682]
[1748042115599,0.24992171,107570.0,107560.0,0.41606682]
[1748042115803,0.24992171,107570.0,107560.0,1.42726682]
[1748042116422,0.24392171,107570.0,107560.0,1.42726682]
[1748042117369,0.24392171,107570.0,107560.0,1.62250667]
[1748042117715,0.24392171,107570.0,107560.0,1.44600229]
[1748042117920,0.24392171,107570.0,107560.0,1.42133548]
[1748042118080,0.24392171,107570.0,107560.0,1.42333548]
[1748042118294,0.24392171,107570.0,107560.0,1.42533548]
[1748042118866,0.24392171,107570.0,107560.0,1.14681548]
[1748042119086,0.24392171,107570.0,107560.0,1.42533548]
[1748042119963,0.24392171,107570.0,107560.0,1.42537548]
[1748042120645,0.25321772,107570.0,107560.0,1.6299122]
[1748042120856,0.04799176,107570.0,107560.0,1.71945776]
[1748042121052,0.06779497,107580.0,107570.0,0.5538132]
[1748042121262,0.0303,107590.0,107580.0,0.56307585]
[1748042121461,0.0303,107590.0,107580.0,1.34988349]
[1748042121462,0.00929385,107590.0,107580.0,1.34988349]
[1748042121830,0.03717625,107590.0,107580.0,1.34988349]
[1748042122251,0.04647062,107590.0,107580.0,1.34988349]
[1748042122412,0.01858778,107590.0,107580.0,1.34988349]
[1748042122585,0.02788189,107590.0,107580.0,1.41121613]
[1748042122785,0.03717617,107590.0,107580.0,1.41121613]
[1748042123750,0.02058778,107590.0,107580.0,1.41121613]
[1748042123966,0.002,107590.0,107580.0,1.41121613]
[1748042124197,0.06077358,107600.0,107590.0,0.53518533]
[1748042124412,0.06077358,107600.0,107590.0,0.55377363]
[1748042124586,0.06077358,107600.0,107590.0,0.56306756]
[1748042124835,0.06077349,107600.0,107590.0,0.56306756]
[1748042125037,0.0421864,107600.0,107590.0,0.52259638]
[1748042125251,0.0514799,107600.0,107590.0,0.53148127]
[1748042125458,0.0534799,107600.0,107590.0,0.53148127]
[1748042125669,0.0441864,107600.0,107590.0,0.53148127]
[1748042125881,0.0534799,107600.0,107590.0,0.53148127]
[1748042126493,0.002,107600.0,107590.0,1.17887868]
[1748042126675,0.004,107600.0,107590.0,0.90074268]
[1748042126846,0.004,107600.0,107590.0,0.92676181]
[1748042127469,0.002,107600.0,107590.0,0.92676181]
[1748042127672,0.002,107600.0,107590.0,0.92776181]
[1748042127911,0.002,107600.0,107590.0,0.94257804]
[1748042128081,0.01858415,107610.0,107600.0,0.55375359]
[1748042128272,0.01858415,107610.0,107600.0,1.32285915]
[1748042128688,0.06376917,107610.0,107600.0,1.30427275]
[1748042128898,0.25724135,107610.0,107600.0,1.412]
[1748042129957,0.25824135,107610.0,107600.0,1.412]
[1748042130159,0.25824135,107610.0,107600.0,1.08088489]
[1748042130359,0.03689212,107610.0,107600.0,1.63463848]
[1748042130533,0.001,107610.0,107600.0,1.72418404]
[1748042130731,0.001,107610.0,107600.0,1.75298404]
[1748042131085,0.001,107610.0,107600.0,2.75769704]
[1748042131298,0.001,107610.0,107600.0,2.78370082]
[1748042132043,0.0135826,107620.0,107610.0,0.24253374]
[1748042132252,0.24793084,107620.0,107610.0,0.67088]
[1748042132456,0.24793084,107620.0,107610.0,0.34]
[1748042132629,0.24793084,107620.0,107610.0,1.01088]
[1748042133268,0.24793084,107620.0,107610.0,1.21491395]
[1748042133676,0.22173084,107620.0,107610.0,1.23349914]
[1748042133884,0.0451833,107620.0,107610.0,1.34162929]
[1748042134083,0.02787516,107620.0,107610.0,1.34162929]
[1748042134285,0.22400617,107620.0,107610.0,1.33233708]
[1748042134494,0.24131465,107620.0,107610.0,1.3230447]
[1748042137188,0.24131465,107620.0,107610.0,1.10931045]
[1748042137398,0.26112287,107620.0,107610.0,1.10931045]
[1748042137619,0.26112287,107620.0,107610.0,0.34888489]
[1748042137819,0.26112287,107620.0,107610.0,1.01972489]
[1748042138028,0.26112287,107620.0,107610.0,0.74124489]
[1748042138225,0.26112287,107620.0,107610.0,1.01972489]
[1748042139485,0.35066843,107620.0,107610.0,0.34888489]
[1748042139686,0.35066843,107620.0,107610.0,1.01972489]
[1748042140086,0.34137657,107620.0,107610.0,1.01084]
[1748042141277,0.25183101,107620.0,107610.0,1.01084]
[1748042144302,0.03689169,107620.0,107610.0,1.22457365]
[1748042144508,0.23202253,107620.0,107610.0,1.21528144]
[1748042144706,0.22273084,107620.0,107610.0,1.2148512]
[1748042144828,0.22273084,107620.0,107610.0,1.22414384]
[1748042145487,0.21343906,107620.0,107610.0,1.01970206]
[1748042145911,0.24273906,107620.0,107610.0,1.01970206]
[1748042147927,0.23673906,107620.0,107610.0,1.01970206]
[1748042149102,0.23673906,107620.0,107610.0,0.74122206]
[1748042149303,0.23673906,107620.0,107610.0,1.01970206]
[1748042150953,0.23673906,107620.0,107610.0,0.67970206]
[1748042152440,0.32628462,107620.0,107610.0,0.67970206]
[1748042152652,0.32628462,107620.0,107610.0,0.00886206]
[1748042152859,0.32628462,107620.0,107610.0,0.67970206]
[1748042154248,0.41628462,107620.0,107610.0,0.67970206]
[1748042154928,0.41628462,107620.0,107610.0,0.67084]
[1748042155546,0.41028462,107620.0,107610.0,0.67084]
[1748042156219,0.41228462,107620.0,107610.0,0.67084]
[1748042157059,0.22364897,107610.0,107600.0,0.40104]
[1748042157269,0.31319453,107610.0,107600.0,1.0716]
[1748042158524,0.34109453,107610.0,107600.0,1.0716]
[1748042161252,0.34109453,107610.0,107600.0,0.79312]
[1748042161490,1.03079453,107610.0,107600.0,0.79312]
[1748042161715,1.03079453,107610.0,107600.0,1.07164]
[1748042163273,1.02150189,107610.0,107600.0,1.07164]
[1748042163518,1.03079453,107610.0,107600.0,1.07164]
[1748042164974,0.94124897,107610.0,107600.0,1.07164]
[1748042166769,1.03079453,107610.0,107600.0,1.07164]
[1748042171038,1.02479453,107610.0,107600.0,1.07164]
[1748042171444,0.02788465,107580.0,107570.0,0.5870361]
[1748042171590,0.02788465,107580.0,107570.0,1.06875225]
[1748042171793,0.22308873,107580.0,107570.0,0.89039969]
[1748042171998,0.26199871,107580.0,107570.0,0.01113413]
[1748042172201,0.26199871,107580.0,107570.0,0.40325413]
[1748042172625,0.26199871,107580.0,107570.0,0.67957249]
[1748042172805,0.26199871,107580.0,107570.0,0.68857249]
[1748042173003,0.26199871,107580.0,107570.0,0.68457249]
[1748042173827,0.26199871,107580.0,107570.0,0.67957249]
[1748042174039,0.35154427,107580.0,107570.0,0.00893249]
[1748042174665,0.69154427,107580.0,107570.0,0.00893249]
[1748042174871,0.76518536,107580.0,107570.0,0.00893249]
[1748042175083,1.05824621,107580.0,107570.0,0.00893249]
[1748042175491,0.1859946,107530.0,107510.0,0.43987079]
[1748042175707,0.1859946,107530.0,107520.0,0.00232477]
[1748042176326,0.1859946,107530.0,107520.0,0.79564477]
[1748042176537,0.2135946,107530.0,107520.0,0.79332]
[1748042176740,0.2424946,107530.0,107520.0,1.07188]
[1748042176978,0.24264639,107530.0,107520.0,1.07188]
[1748042177188,0.24264639,107530.0,107520.0,1.07388]
[1748042177414,0.24264639,107530.0,107520.0,0.79332]
[1748042177609,0.24264639,107530.0,107520.0,1.07188]
[1748042178041,0.33219195,107530.0,107520.0,0.79332]
[1748042178244,0.67219195,107530.0,107520.0,1.07188]
[1748042178462,0.67219195,107530.0,107520.0,0.40112]
[1748042178687,0.66619195,107530.0,107520.0,0.79332]
[1748042178905,0.66619195,107530.0,107520.0,0.79432]
[1748042179111,0.66619195,107530.0,107520.0,0.40212]
[1748042179320,0.66619195,107530.0,107520.0,0.40112]
[1748042179529,0.66919195,107530.0,107520.0,0.40112]
[1748042179745,0.66719195,107530.0,107520.0,0.40112]
[1748042180166,0.67019195,107530.0,107520.0,0.40112]
[1748042180857,0.66919195,107530.0,107520.0,0.40112]
[1748042181014,0.75563022,107530.0,107520.0,0.40112]
[1748042181221,0.75863022,107530.0,107520.0,0.40112]
[1748042181666,0.67219195,107530.0,107520.0,0.40112]
[1748042183147,0.59163048,107510.0,107500.0,2.53080236]
[1748042183345,0.68117604,107510.0,107500.0,2.80948236]
[1748042184526,0.68117604,107510.0,107500.0,2.13848236]
[1748042184724,0.68117604,107510.0,107500.0,2.53080236]
[1748042185140,1.11915677,107510.0,107500.0,0.32690468]
[1748042185339,0.53540318,107470.0,107460.0,0.0160754]
[1748042185538,0.62494874,107470.0,107460.0,0.0160754]
[1748042185743,0.62494874,107470.0,107460.0,0.3232954]
[1748042186167,0.62494874,107470.0,107460.0,0.2947954]
[1748042186444,0.27894874,107470.0,107460.0,0.2947954]
[1748042186763,0.28210039,107470.0,107460.0,0.2947954]
[1748042186959,0.28210039,107470.0,107460.0,0.3526954]
[1748042187898,0.28510039,107470.0,107460.0,0.3526954]
[1748042188529,0.28510039,107470.0,107460.0,0.7447754]
[1748042188925,0.19555483,107470.0,107460.0,0.7447754]
[1748042189131,0.20485949,107470.0,107460.0,0.7447754]
[1748042189340,0.20485949,107470.0,107460.0,1.0847754]
[1748042189559,0.20485949,107470.0,107460.0,1.27089116]
[1748042189767,0.20485949,107470.0,107460.0,1.37904802]
[1748042189974,0.19555483,107470.0,107460.0,1.3790482]
[1748042190182,0.18625009,107470.0,107460.0,1.17432096]
[1748042190614,0.18325009,107470.0,107460.0,1.17432096]
[1748042191092,0.18425009,107470.0,107460.0,1.17432096]
[1748042191819,0.18125009,107470.0,107460.0,1.17432096]
[1748042192269,0.18225009,107470.0,107460.0,1.36043672]
[1748042192477,0.18225009,107470.0,107460.0,1.38835304]
[1748042192478,0.02076019,107470.0,107460.0,1.38835304]
[1748042192688,0.03936959,107470.0,107460.0,1.38835304]
[1748042192894,0.01145579,107470.0,107460.0,1.38835304]
[1748042193098,0.03006475,107470.0,107460.0,2.08249904]
[1748042193326,0.01145587,107470.0,107460.0,1.95194904]
[1748042193543,0.01976019,107470.0,107460.0,1.95194904]
[1748042193734,0.00945579,107470.0,107460.0,1.95194904]
[1748042194002,0.00945579,107470.0,107460.0,1.95394904]
[1748042194219,0.0093044,107470.0,107460.0,1.95594904]
[1748042194548,0.01860897,107470.0,107460.0,1.95394904]
[1748042194803,0.18607419,107500.0,107480.0,0.34930345]
[1748042195008,0.02790843,107490.0,107480.0,0.64353764]
[1748042195208,0.02790843,107490.0,107480.0,2.04450864]
[1748042195421,0.02790843,107490.0,107480.0,2.03906664]
[1748042195622,0.02790783,107490.0,107480.0,2.03906664]
[1748042195912,0.001,107510.0,107500.0,0.27555242]
[1748042196116,0.001,107510.0,107500.0,3.76324482]
[1748042196333,0.02689494,107540.0,107530.0,0.19529424]
[1748042196541,0.20457459,107540.0,107530.0,1.13396]
[1748042196750,0.27821568,107540.0,107530.0,1.13396]
[1748042196952,0.27821568,107540.0,107530.0,1.07232]
[1748042197153,0.70791362,107540.0,107530.0,0.79352]
[1748042197360,0.70791362,107540.0,107500.0,0.00878742]
[1748042197361,0.19533048,107510.0,107500.0,0.00878742]
[1748042197565,0.19533048,107510.0,107500.0,0.73946742]
[1748042198405,0.19533048,107510.0,107500.0,0.46466742]
[1748042198612,0.62487604,107510.0,107500.0,0.39608]
[1748042198764,0.62487604,107510.0,107500.0,0.67084]
[1748042198965,0.62587604,107510.0,107500.0,0.67084]
[1748042199368,0.62587604,107510.0,107490.0,0.4014]
[1748042199369,0.53534866,107500.0,107490.0,0.4014]
[1748042199528,0.62489422,107500.0,107490.0,1.07224]
[1748042200463,0.62489422,107500.0,107490.0,0.4014]
[1748042200849,0.62489422,107500.0,107490.0,1.07274637]
[1748042201054,0.62489422,107500.0,107490.0,0.40190637]
[1748042201270,0.62689422,107500.0,107490.0,1.07274637]
[1748042201952,0.61759207,107500.0,107490.0,1.07274637]
[1748042202166,0.62789422,107500.0,107490.0,1.07274637]
[1748042203353,0.53834866,107500.0,107490.0,1.10494637]
[1748042203574,0.53834866,107500.0,107490.0,1.13334637]
[1748042204028,0.53834866,107500.0,107490.0,1.07274637]
[1748042204340,0.62789422,107500.0,107490.0,1.07274637]
[1748042204719,0.62789422,107500.0,107490.0,0.79398637]
[1748042204872,0.62789422,107500.0,107490.0,0.40190637]
[1748042205091,0.62789422,107500.0,107490.0,1.07278637]
[1748042207657,0.62789422,107500.0,107490.0,0.79402637]
[1748042207941,0.62789422,107500.0,107490.0,1.07282637]
[1748042208130,0.62789422,107500.0,107490.0,0.40190637]
[1748042208288,0.62789422,107500.0,107490.0,1.07282637]
[1748042208512,0.70928656,107500.0,107490.0,1.07282637]
[1748042208874,0.62789422,107500.0,107490.0,1.07282637]
[1748042209072,0.65439422,107500.0,107490.0,0.79402637]
[1748042209350,0.65439422,107500.0,107490.0,1.07282637]
[1748042209469,0.64839422,107500.0,107490.0,1.07282637]
[1748042209869,0.64839422,107500.0,107490.0,0.00050637]
[1748042210076,0.7637606,107500.0,107490.0,0.00050637]
[1748042210288,0.8537606,107500.0,107490.0,0.00050637]
[1748042210933,0.8527606,107500.0,107490.0,0.00050637]
[1748042211200,0.8557606,107500.0,107490.0,0.00050637]
[1748042211849,0.8617606,107500.0,107490.0,0.00150637]
[1748042212053,0.77163507,107500.0,107490.0,0.00150637]
[1748042212274,0.76193507,107500.0,107490.0,0.00250637]
[1748042213056,0.72089422,107500.0,107490.0,0.00250637]
[1748042215048,0.72089422,107500.0,107490.0,0.28134637]
[1748042215746,0.40999422,107500.0,107490.0,0.00250637]
[1748042215963,0.83983741,107500.0,107490.0,0.00250637]
[1748042217018,0.89562741,107500.0,107490.0,0.00250637]
[1748042217222,0.83983741,107500.0,107490.0,0.00250637]
[1748042217429,0.84383741,107500.0,107490.0,0.00250637]
[1748042220436,0.78423507,107500.0,107490.0,0.00250637]
[1748042221151,0.72943507,107500.0,107490.0,0.00250637]
[1748042223706,0.2285292,107510.0,107500.0,2.27056493]
[1748042224008,0.31807476,107510.0,107500.0,2.27056493]
[1748042224873,0.32607476,107510.0,107500.0,2.27156493]
[1748042225081,0.32007476,107510.0,107500.0,2.27156493]
[1748042225463,0.32807476,107510.0,107500.0,2.27256493]
[1748042225670,0.68261561,107510.0,107500.0,2.27256493]
[1748042226264,0.69831561,107510.0,107500.0,2.27256493]
[1748042226490,0.68261561,107510.0,107500.0,2.27256493]
[1748042226697,0.62557476,107510.0,107500.0,2.27256493]
[1748042227703,0.65617476,107510.0,107500.0,2.27256493]
[1748042229495,0.62557476,107510.0,107500.0,2.27256493]
[1748042229825,0.65617476,107510.0,107500.0,2.27256493]
[1748042231542,0.65617476,107510.0,107500.0,2.08437971]
[1748042232738,0.61957476,107510.0,107500.0,2.08437971]
[1748042234396,0.69041561,107510.0,107500.0,2.08437971]
[1748042235736,0.78041561,107510.0,107500.0,2.08437971]
[1748042237126,0.72411561,107510.0,107500.0,2.08437971]
[1748042238375,0.98845476,107510.0,107500.0,2.08437971]
[1748042238575,0.72411561,107510.0,107500.0,2.08437971]
[1748042240493,0.71811561,107510.0,107500.0,2.08437971]
[1748042244097,0.74981561,107510.0,107500.0,2.08437971]
[1748042244239,0.80986438,107510.0,107500.0,2.08437971]
[1748042244438,0.86565438,107510.0,107500.0,2.08437971]
[1748042245653,0.87209376,107510.0,107500.0,2.08437971]
[1748042246279,0.96989376,107510.0,107500.0,2.08437971]
[1748042246522,0.87209376,107510.0,107500.0,2.08437971]
[1748042248185,0.87609376,107510.0,107500.0,2.08437971]
[1748042249079,0.82604499,107510.0,107500.0,2.08437971]
[1748042250128,0.80604499,107510.0,107500.0,2.08437971]
[1748042250328,0.78434499,107510.0,107500.0,2.08437971]
[1748042250705,1.06322499,107510.0,107500.0,2.08437971]
[1748042251089,1.06322499,107510.0,107500.0,2.14587971]
[1748042251090,0.98289414,107510.0,107500.0,2.14587971]
[1748042251574,0.71855499,107510.0,107500.0,2.14587971]
[1748042251755,0.36401414,107510.0,107500.0,2.14587971]
[1748042251954,0.70401414,107510.0,107500.0,2.14587971]
[1748042252161,0.36401414,107510.0,107500.0,2.14587971]
[1748042252809,0.71855499,107510.0,107500.0,2.14587971]
[1748042253996,0.71855499,107510.0,107500.0,2.11587971]
[1748042254559,0.71855499,107510.0,107500.0,2.08437971]
[1748042255787,0.71255499,107510.0,107500.0,2.08437971]
[1748042257691,1.09302461,107510.0,107500.0,2.08437971]
[1748042258392,1.10302461,107510.0,107500.0,2.08437971]
[1748042258594,1.17275802,107510.0,107500.0,2.08437971]
[1748042259557,1.13412461,107510.0,107500.0,2.08437971]
[1748042259764,0.75365499,107510.0,107500.0,2.08437971]
[1748042262042,0.80944499,107510.0,107500.0,2.08437971]
[1748042263570,0.80344499,107510.0,107500.0,2.08437971]
[1748042268183,0.79344499,107510.0,107500.0,2.08437971]
[1748042268464,0.8518665,107510.0,107500.0,2.08437971]
[1748042269020,0.8850665,107510.0,107500.0,2.08437971]
[1748042270404,0.8518665,107510.0,107500.0,2.08437971]
[1748042270987,0.8518665,107510.0,107500.0,1.85812982]
[1748042271209,0.9769165,107510.0,107500.0,1.85812982]
[1748042271431,0.8790665,107510.0,107500.0,1.85812982]
[1748042271844,0.8458665,107510.0,107500.0,1.83878242]
[1748042274622,0.8458665,107510.0,107500.0,1.83495953]
[1748042275419,1.1247465,107510.0,107500.0,1.83495953]
[1748042276598,1.03522499,107510.0,107500.0,1.78847924]
[1748042277036,1.03522499,107510.0,107500.0,1.74199895]
[1748042277380,1.03522499,107510.0,107500.0,1.69551866]
[1748042277582,1.03522499,107510.0,107500.0,1.72641866]
[1748042279104,1.02922499,107510.0,107500.0,1.72641866]
[1748042279553,1.02922499,107510.0,107500.0,1.67994866]
[1748042279774,1.40975741,107510.0,107500.0,1.67994866]
[1748042280455,1.47696358,107510.0,107500.0,1.63346837]
[1748042280699,1.47696358,107510.0,107500.0,1.61511837]
[1748042281168,1.47696358,107510.0,107500.0,1.56577286]
[1748042281390,1.47696358,107510.0,107500.0,1.51930286]
[1748042281624,1.09643116,107510.0,107500.0,1.51930286]